[Event "*** Titled Tuesday Blitz"]
[Site "Chess.com"]
[Date "2021.02.16"]
[Round "3"]
[White "BvsN"]
[Black "MerryPoppies"]
[Result "1-0"]
[WhiteElo "2368"]
[BlackElo "2180"]
[TimeControl "180+1"]
[EndTime "10:30:24 PST"]
[Termination "BvsN won by checkmate"]

1. c4 {[%clk 0:03:00.9]} 1... e6 {[%clk 0:02:59.9]} 2. Nc3 {[%clk 0:03:00.6]}
2... d5 {[%clk 0:03:00]} 3. d4 {[%clk 0:03:00.7]} 3... Nf6 {[%clk 0:03:00.1]} 4.
cxd5 {[%clk 0:03:00.5]} 4... exd5 {[%clk 0:03:00.3]} 5. Bg5 {[%clk 0:03:00.7]}
5... Be7 {[%clk 0:03:00.3]} 6. e3 {[%clk 0:03:00.6]} 6... c6 {[%clk 0:03:00.7]}
7. Bd3 {[%clk 0:03:00.7]} 7... h6 {[%clk 0:02:59.9]} 8. Bh4 {[%clk 0:03:00.5]}
8... O-O {[%clk 0:02:59.9]} 9. Nge2 {[%clk 0:03:00.5]} 9... Bg4 {[%clk
0:02:58.5]} 10. f3 {[%clk 0:02:57.2]} 10... Bh5 {[%clk 0:02:55.1]} 11. Nf4
{[%clk 0:02:28.7]} 11... g5 {[%clk 0:02:38.1]} 12. Nxh5 {[%clk 0:02:25.7]} 12...
Nxh5 {[%clk 0:02:37.2]} 13. Bf2 {[%clk 0:02:23.5]} 13... Nd7 {[%clk 0:02:23]}
14. Qc2 {[%clk 0:02:21.6]} 14... Ng7 {[%clk 0:02:18.6]} 15. h4 {[%clk
0:02:09.8]} 15... gxh4 {[%clk 0:02:01]} 16. O-O-O {[%clk 0:02:09.7]} 16... c5
{[%clk 0:01:44.7]} 17. Kb1 {[%clk 0:01:20.4]} 17... c4 {[%clk 0:01:33.4]} 18.
Bh7+ {[%clk 0:01:18.7]} 18... Kh8 {[%clk 0:01:33.4]} 19. Nxd5 {[%clk 0:01:13.7]}
19... Nf6 {[%clk 0:01:23.3]} 20. Nxe7 {[%clk 0:01:08.2]} 20... Qxe7 {[%clk
0:01:13.9]} 21. Bxh4 {[%clk 0:01:05.6]} 21... Qe6 {[%clk 0:00:58.3]} 22. Bxf6
{[%clk 0:00:54]} 22... Qxf6 {[%clk 0:00:58.1]} 23. Be4 {[%clk 0:00:51.9]} 23...
Rab8 {[%clk 0:00:50.8]} 24. Rh3 {[%clk 0:00:47.5]} 24... b5 {[%clk 0:00:50.5]}
25. Rdh1 {[%clk 0:00:47.4]} 25... h5 {[%clk 0:00:46.4]} 26. g4 {[%clk
0:00:38.7]} 26... Rfc8 {[%clk 0:00:34.5]} 27. Qh2 {[%clk 0:00:21.3]} 27... b4
{[%clk 0:00:25.2]} 28. f4 {[%clk 0:00:18.7]} 28... c3 {[%clk 0:00:23.9]} 29. b3
{[%clk 0:00:17.5]} 29... Qe6 {[%clk 0:00:19.3]} 30. Rxh5+ {[%clk 0:00:15.2]}
30... Nxh5 {[%clk 0:00:18.7]} 31. Qxh5+ {[%clk 0:00:15.5]} 31... Kg8 {[%clk
0:00:19]} 32. Qg5+ {[%clk 0:00:15.4]} 32... Kf8 {[%clk 0:00:19]} 33. Rh8# {[%clk
0:00:15.2]} 1-0

[Event "*** Titled Tuesday Blitz"]
[Site "Chess.com"]
[Date "2021.02.16"]
[Round "3"]
[White "garfield_pg"]
[Black "StockholmMissile"]
[Result "0-1"]
[WhiteElo "2309"]
[BlackElo "2521"]
[TimeControl "180+1"]
[EndTime "10:30:25 PST"]
[Termination "StockholmMissile won by resignation"]

1. e4 {[%clk 0:03:00.9]} 1... e5 {[%clk 0:02:59.6]} 2. d4 {[%clk 0:03:00.9]}
2... exd4 {[%clk 0:02:59.5]} 3. Nf3 {[%clk 0:03:01.8]} 3... Nc6 {[%clk
0:02:58.4]} 4. Nxd4 {[%clk 0:03:01.9]} 4... Bc5 {[%clk 0:02:56.9]} 5. Nxc6
{[%clk 0:03:01.7]} 5... Qf6 {[%clk 0:02:52.3]} 6. Qd2 {[%clk 0:03:01.2]} 6...
bxc6 {[%clk 0:02:46.1]} 7. Nc3 {[%clk 0:02:50.1]} 7... Ne7 {[%clk 0:02:36.5]} 8.
Qf4 {[%clk 0:02:44.3]} 8... Qxf4 {[%clk 0:02:30.9]} 9. Bxf4 {[%clk 0:02:45.2]}
9... d6 {[%clk 0:02:31.3]} 10. f3 {[%clk 0:02:41.5]} 10... Ng6 {[%clk
0:02:29.2]} 11. Bd2 {[%clk 0:02:38.8]} 11... O-O {[%clk 0:02:23.8]} 12. O-O-O
{[%clk 0:02:39.2]} 12... Be6 {[%clk 0:02:22.7]} 13. h4 {[%clk 0:02:08.2]} 13...
h5 {[%clk 0:02:19]} 14. Na4 {[%clk 0:02:04.2]} 14... Bf2 {[%clk 0:02:15.9]} 15.
b3 {[%clk 0:01:59.6]} 15... Bxh4 {[%clk 0:02:08.5]} 16. Be3 {[%clk 0:01:38.1]}
16... c5 {[%clk 0:01:49.7]} 17. Ba6 {[%clk 0:00:42.5]} 17... Rab8 {[%clk
0:01:44.8]} 18. Rh2 {[%clk 0:00:41.9]} 18... Bg3 {[%clk 0:01:07]} 19. Rxh5
{[%clk 0:00:36.4]} 19... Bf4 {[%clk 0:01:06.9]} 20. Bxf4 {[%clk 0:00:34.9]}
20... Nxf4 {[%clk 0:01:07.8]} 21. Rh2 {[%clk 0:00:30.7]} 21... g5 {[%clk
0:00:58.5]} 22. Rdh1 {[%clk 0:00:27.3]} 22... Kg7 {[%clk 0:00:56.7]} 23. Rh7+
{[%clk 0:00:27.2]} 23... Kf6 {[%clk 0:00:56.4]} 24. g3 {[%clk 0:00:25.3]} 24...
Ng6 {[%clk 0:00:49.3]} 25. Nc3 {[%clk 0:00:25.5]} 25... c6 {[%clk 0:00:38.8]}
26. Kd2 {[%clk 0:00:19.2]} 26... Rh8 {[%clk 0:00:31.1]} 27. Rxh8 {[%clk
0:00:18.8]} 27... Nxh8 {[%clk 0:00:28.2]} 28. Rxh8 {[%clk 0:00:19.7]} 28... Rxh8
{[%clk 0:00:27.3]} 29. Ke3 {[%clk 0:00:12.2]} 29... Rh2 {[%clk 0:00:25.9]} 0-1

[Event "*** Titled Tuesday Blitz"]
[Site "Chess.com"]
[Date "2021.02.16"]
[Round "3"]
[White "fish7728"]
[Black "MartinMatthiesen"]
[Result "0-1"]
[WhiteElo "2185"]
[BlackElo "2370"]
[TimeControl "180+1"]
[EndTime "10:30:25 PST"]
[Termination "MartinMatthiesen won by resignation"]

1. d4 {[%clk 0:03:00.9]} 1... Nf6 {[%clk 0:02:58.3]} 2. c4 {[%clk 0:03:01.1]}
2... e6 {[%clk 0:02:58.3]} 3. Nc3 {[%clk 0:03:01.2]} 3... Bb4 {[%clk 0:02:58]}
4. f3 {[%clk 0:03:01.5]} 4... d5 {[%clk 0:02:53.9]} 5. a3 {[%clk 0:03:01.3]}
5... Bxc3+ {[%clk 0:02:53.9]} 6. bxc3 {[%clk 0:03:02.2]} 6... c5 {[%clk
0:02:52.9]} 7. e3 {[%clk 0:03:02.3]} 7... O-O {[%clk 0:02:50.4]} 8. cxd5 {[%clk
0:03:02.7]} 8... exd5 {[%clk 0:02:50]} 9. Bd3 {[%clk 0:03:02.8]} 9... b6 {[%clk
0:02:47.4]} 10. Ne2 {[%clk 0:03:02.6]} 10... Ba6 {[%clk 0:02:46.4]} 11. O-O
{[%clk 0:02:49.4]} 11... Bxd3 {[%clk 0:02:44.4]} 12. Qxd3 {[%clk 0:02:49.1]}
12... Nc6 {[%clk 0:02:44.1]} 13. e4 {[%clk 0:02:24.8]} 13... dxe4 {[%clk
0:02:39.8]} 14. fxe4 {[%clk 0:02:25.5]} 14... cxd4 {[%clk 0:02:20.5]} 15. cxd4
{[%clk 0:02:26.4]} 15... Ne5 {[%clk 0:01:42.2]} 16. Qh3 {[%clk 0:02:00]} 16...
Ned7 {[%clk 0:01:35.2]} 17. Bg5 {[%clk 0:01:48.9]} 17... Qe8 {[%clk 0:01:20.4]}
18. e5 {[%clk 0:01:27.6]} 18... Nd5 {[%clk 0:01:19.5]} 19. Ng3 {[%clk
0:01:26.9]} 19... Qe6 {[%clk 0:01:16.7]} 20. Nf5 {[%clk 0:01:15.1]} 20... b5
{[%clk 0:01:04.1]} 21. Qg4 {[%clk 0:00:51.4]} 21... Rae8 {[%clk 0:00:47.6]} 22.
Qf3 {[%clk 0:00:19.9]} 22... f6 {[%clk 0:00:41.3]} 23. Bd2 {[%clk 0:00:09.5]}
23... fxe5 {[%clk 0:00:39.4]} 24. dxe5 {[%clk 0:00:09.6]} 24... Nxe5 {[%clk
0:00:38.4]} 25. Qe4 {[%clk 0:00:09.9]} 25... Nc4 {[%clk 0:00:32.5]} 26. Qd3
{[%clk 0:00:07.6]} 26... Nxd2 {[%clk 0:00:29.8]} 27. Qxd2 {[%clk 0:00:04.7]}
27... Rxf5 {[%clk 0:00:29.7]} 28. Rae1 {[%clk 0:00:03.7]} 28... Rxf1+ {[%clk
0:00:28.1]} 29. Rxf1 {[%clk 0:00:04.3]} 29... Qe3+ {[%clk 0:00:27.4]} 30. Qxe3
{[%clk 0:00:04.9]} 30... Rxe3 {[%clk 0:00:27.3]} 0-1

[Event "*** Titled Tuesday Blitz"]
[Site "Chess.com"]
[Date "2021.02.16"]
[Round "3"]
[White "ViditYT"]
[Black "FontVella8"]
[Result "1-0"]
[WhiteElo "3011"]
[BlackElo "2570"]
[TimeControl "180+1"]
[EndTime "10:30:26 PST"]
[Termination "ViditYT won by checkmate"]

1. e4 {[%clk 0:03:00.9]} 1... e6 {[%clk 0:02:59.3]} 2. d4 {[%clk 0:02:59.2]}
2... d5 {[%clk 0:02:59.2]} 3. Nc3 {[%clk 0:02:59.4]} 3... Bb4 {[%clk 0:02:57.8]}
4. e5 {[%clk 0:02:59.4]} 4... c5 {[%clk 0:02:57.1]} 5. a3 {[%clk 0:02:59.7]}
5... Ba5 {[%clk 0:02:55.5]} 6. b4 {[%clk 0:02:56.6]} 6... cxb4 {[%clk 0:02:55]}
7. Nb5 {[%clk 0:02:54.9]} 7... Nc6 {[%clk 0:02:55.1]} 8. axb4 {[%clk 0:02:26.8]}
8... Bxb4+ {[%clk 0:02:54.6]} 9. c3 {[%clk 0:02:27.1]} 9... Be7 {[%clk
0:02:54.8]} 10. Ba3 {[%clk 0:02:21.4]} 10... Bxa3 {[%clk 0:02:54.4]} 11. Rxa3
{[%clk 0:02:21.3]} 11... Nh6 {[%clk 0:02:55.3]} 12. Nd6+ {[%clk 0:02:19.4]}
12... Kf8 {[%clk 0:02:55.8]} 13. Bd3 {[%clk 0:02:18]} 13... Qe7 {[%clk
0:02:55.6]} 14. f4 {[%clk 0:02:05.9]} 14... f6 {[%clk 0:02:55.5]} 15. Ra2 {[%clk
0:01:51.5]} 15... Nf7 {[%clk 0:02:53.2]} 16. Nxf7 {[%clk 0:01:51.6]} 16... Qxf7
{[%clk 0:02:43]} 17. Nf3 {[%clk 0:01:52.2]} 17... g6 {[%clk 0:02:27.2]} 18. O-O
{[%clk 0:01:50.6]} 18... Kg7 {[%clk 0:02:26.4]} 19. exf6+ {[%clk 0:01:42.9]}
19... Qxf6 {[%clk 0:02:25.7]} 20. Ne5 {[%clk 0:01:43.3]} 20... Rf8 {[%clk
0:02:15.9]} 21. Raf2 {[%clk 0:01:35.4]} 21... Qe7 {[%clk 0:02:14.1]} 22. Qg4
{[%clk 0:01:22.8]} 22... Rf6 {[%clk 0:01:38.1]} 23. h4 {[%clk 0:01:20.1]} 23...
Bd7 {[%clk 0:01:26.4]} 24. h5 {[%clk 0:01:20.1]} 24... Nxe5 {[%clk 0:01:24.8]}
25. dxe5 {[%clk 0:01:07.2]} 25... Rff8 {[%clk 0:01:22.7]} 26. hxg6 {[%clk
0:01:07.1]} 26... h6 {[%clk 0:01:22.7]} 27. Qh5 {[%clk 0:00:53.9]} 27... Qc5
{[%clk 0:00:58.3]} 28. Kh1 {[%clk 0:00:50.6]} 28... Qxc3 {[%clk 0:00:51.5]} 29.
Rf3 {[%clk 0:00:50.8]} 29... Qd2 {[%clk 0:00:48.7]} 30. Rh3 {[%clk 0:00:39.4]}
30... Rh8 {[%clk 0:00:47.1]} 31. Qh4 {[%clk 0:00:38.2]} 31... Raf8 {[%clk
0:00:15.3]} 32. Qe7+ {[%clk 0:00:37.8]} 32... Kg8 {[%clk 0:00:15.2]} 33. g7
{[%clk 0:00:34.8]} 33... Rxf4 {[%clk 0:00:11.5]} 34. gxh8=Q+ {[%clk 0:00:33]}
34... Kxh8 {[%clk 0:00:10.9]} 35. Qh7# {[%clk 0:00:33.1]} 1-0

[Event "*** Titled Tuesday Blitz"]
[Site "Chess.com"]
[Date "2021.02.16"]
[Round "3"]
[White "vaishali2001"]
[Black "MusicCityMaster"]
[Result "1-0"]
[WhiteElo "2586"]
[BlackElo "2381"]
[TimeControl "180+1"]
[EndTime "10:30:27 PST"]
[Termination "vaishali2001 won by resignation"]

1. d4 {[%clk 0:03:00.9]} 1... Nf6 {[%clk 0:02:59.6]} 2. c4 {[%clk 0:03:00.8]}
2... c5 {[%clk 0:02:59.8]} 3. d5 {[%clk 0:02:52.6]} 3... b5 {[%clk 0:03:00.2]}
4. cxb5 {[%clk 0:02:51.6]} 4... a6 {[%clk 0:03:00.9]} 5. bxa6 {[%clk 0:02:47.7]}
5... g6 {[%clk 0:03:00.7]} 6. Nc3 {[%clk 0:02:39.4]} 6... Bxa6 {[%clk 0:03:01]}
7. e4 {[%clk 0:02:31.5]} 7... Bxf1 {[%clk 0:03:01.6]} 8. Kxf1 {[%clk 0:02:32.4]}
8... d6 {[%clk 0:03:01.9]} 9. Nf3 {[%clk 0:02:30.4]} 9... Bg7 {[%clk 0:03:01.5]}
10. g3 {[%clk 0:02:31]} 10... O-O {[%clk 0:03:01.7]} 11. Kg2 {[%clk 0:02:31.9]}
11... Qb6 {[%clk 0:03:01.9]} 12. a4 {[%clk 0:02:31]} 12... Na6 {[%clk
0:02:59.6]} 13. Nd2 {[%clk 0:02:21.4]} 13... Qb7 {[%clk 0:02:53.8]} 14. Nc4
{[%clk 0:02:17.6]} 14... Nb4 {[%clk 0:02:41.9]} 15. Re1 {[%clk 0:02:10.9]} 15...
Ra6 {[%clk 0:02:39.6]} 16. Rb1 {[%clk 0:02:07.9]} 16... Re8 {[%clk 0:02:36.2]}
17. b3 {[%clk 0:02:00.1]} 17... e6 {[%clk 0:02:32.3]} 18. Nb5 {[%clk 0:01:55.2]}
18... Qb8 {[%clk 0:01:59.2]} 19. Bf4 {[%clk 0:01:18.1]} 19... Bf8 {[%clk
0:01:33.6]} 20. dxe6 {[%clk 0:00:43.1]} 20... Rxe6 {[%clk 0:01:32.1]} 21. Qf3
{[%clk 0:00:42.2]} 21... Nh5 {[%clk 0:01:12]} 22. Bxd6 {[%clk 0:00:26.4]} 22...
Bxd6 {[%clk 0:01:11.3]} 23. Nbxd6 {[%clk 0:00:26.4]} 23... Raxd6 {[%clk
0:01:11.1]} 24. Nxd6 {[%clk 0:00:26.5]} 24... Qxd6 {[%clk 0:01:11.2]} 25. Rbd1
{[%clk 0:00:26.9]} 25... Qe7 {[%clk 0:01:10.6]} 26. a5 {[%clk 0:00:15.8]} 26...
Nc2 {[%clk 0:01:10]} 27. Re3 {[%clk 0:00:09.7]} 27... Nxe3+ {[%clk 0:01:08.6]}
28. Qxe3 {[%clk 0:00:09.1]} 28... Rxe4 {[%clk 0:01:08.2]} 29. Qf3 {[%clk
0:00:06.6]} 29... Re6 {[%clk 0:01:02.7]} 30. Qa8+ {[%clk 0:00:04.2]} 30... Qe8
{[%clk 0:00:58.4]} 31. Rd8 {[%clk 0:00:04.1]} 31... Kf8 {[%clk 0:00:58]} 32. a6
{[%clk 0:00:03]} 32... Nf6 {[%clk 0:00:55.3]} 33. Rxe8+ {[%clk 0:00:03.1]} 33...
Rxe8 {[%clk 0:00:55.1]} 34. Qb7 {[%clk 0:00:03.5]} 34... Ne4 {[%clk 0:00:51.5]}
35. a7 {[%clk 0:00:03.6]} 35... Nd6 {[%clk 0:00:52.4]} 36. Qb8 {[%clk
0:00:04.1]} 36... Rxb8 {[%clk 0:00:44]} 37. axb8=Q+ {[%clk 0:00:03.8]} 37... Ne8
{[%clk 0:00:43.8]} 38. Qc8 {[%clk 0:00:03.8]} 1-0

[Event "*** Titled Tuesday Blitz"]
[Site "Chess.com"]
[Date "2021.02.16"]
[Round "3"]
[White "LiemLe"]
[Black "kingofthenil"]
[Result "1-0"]
[WhiteElo "2981"]
[BlackElo "2672"]
[TimeControl "180+1"]
[EndTime "10:30:31 PST"]
[Termination "LiemLe won by resignation"]

1. d4 {[%clk 0:03:00.9]} 1... Nf6 {[%clk 0:02:58.9]} 2. Nf3 {[%clk 0:03:00.1]}
2... d5 {[%clk 0:02:57.9]} 3. Bf4 {[%clk 0:03:00.5]} 3... c5 {[%clk 0:02:58.1]}
4. e3 {[%clk 0:03:00.8]} 4... Nc6 {[%clk 0:02:57.7]} 5. c3 {[%clk 0:03:00.5]}
5... Qb6 {[%clk 0:02:54]} 6. Qc2 {[%clk 0:02:58.2]} 6... cxd4 {[%clk 0:02:48.9]}
7. exd4 {[%clk 0:02:59.1]} 7... Bf5 {[%clk 0:02:48.7]} 8. Qb3 {[%clk 0:02:56.8]}
8... e6 {[%clk 0:02:47.5]} 9. Nbd2 {[%clk 0:02:53]} 9... Be7 {[%clk 0:02:47.4]}
10. Nh4 {[%clk 0:02:36.7]} 10... Be4 {[%clk 0:02:42.8]} 11. Be2 {[%clk
0:02:20.7]} 11... O-O {[%clk 0:02:39.2]} 12. Nxe4 {[%clk 0:02:05.2]} 12... Nxe4
{[%clk 0:02:35.1]} 13. Nf3 {[%clk 0:02:03.6]} 13... Bd6 {[%clk 0:02:26.6]} 14.
Qxb6 {[%clk 0:02:02.1]} 14... axb6 {[%clk 0:02:26.4]} 15. Be3 {[%clk 0:02:00.6]}
15... Rfc8 {[%clk 0:02:15]} 16. O-O {[%clk 0:01:58.8]} 16... Na5 {[%clk
0:02:15.3]} 17. Ne1 {[%clk 0:01:45.2]} 17... Nc4 {[%clk 0:02:07.7]} 18. Bxc4
{[%clk 0:01:44.9]} 18... dxc4 {[%clk 0:02:04.1]} 19. a3 {[%clk 0:01:37.3]} 19...
Nf6 {[%clk 0:01:59.1]} 20. Nc2 {[%clk 0:01:37]} 20... b5 {[%clk 0:01:54]} 21.
Rae1 {[%clk 0:01:35.5]} 21... Nd5 {[%clk 0:01:53.5]} 22. Bc1 {[%clk 0:01:33.9]}
22... Re8 {[%clk 0:01:45.1]} 23. g3 {[%clk 0:01:32.7]} 23... f5 {[%clk
0:01:43.3]} 24. Kg2 {[%clk 0:01:29.3]} 24... Kf7 {[%clk 0:01:43.3]} 25. Kf3
{[%clk 0:01:27.9]} 25... Rg8 {[%clk 0:01:25.7]} 26. Ne3 {[%clk 0:01:27.7]} 26...
Rae8 {[%clk 0:01:08.4]} 27. Nxd5 {[%clk 0:01:24.3]} 27... exd5 {[%clk
0:01:09.3]} 28. Bf4 {[%clk 0:01:24.6]} 28... Bxf4 {[%clk 0:00:54.3]} 29. Kxf4
{[%clk 0:01:25.5]} 29... Kf6 {[%clk 0:00:46.6]} 30. h4 {[%clk 0:01:25.4]} 30...
g6 {[%clk 0:00:34.5]} 31. Re5 {[%clk 0:01:05.4]} 31... Rxe5 {[%clk 0:00:30.7]}
32. dxe5+ {[%clk 0:01:06.3]} 32... Ke6 {[%clk 0:00:31.2]} 33. Kg5 {[%clk
0:01:07]} 33... Kxe5 {[%clk 0:00:28.9]} 34. Re1+ {[%clk 0:01:07.4]} 34... Kd6
{[%clk 0:00:29.3]} 35. Kh6 {[%clk 0:01:07.7]} 35... d4 {[%clk 0:00:12.4]} 36.
cxd4 {[%clk 0:01:08.6]} 36... b4 {[%clk 0:00:03.6]} 37. axb4 {[%clk 0:01:05.3]}
37... Ra8 {[%clk 0:00:04.1]} 38. Kxh7 {[%clk 0:01:05.3]} 38... Ra2 {[%clk
0:00:04.8]} 39. Rb1 {[%clk 0:01:02.3]} 39... f4 {[%clk 0:00:02.7]} 40. Kxg6
{[%clk 0:01:01.6]} 40... f3 {[%clk 0:00:02.8]} 41. h5 {[%clk 0:01:01.8]} 41...
c3 {[%clk 0:00:03.3]} 42. bxc3 {[%clk 0:01:02.7]} 42... Rxf2 {[%clk 0:00:04.2]}
43. g4 {[%clk 0:01:01.6]} 43... Rg2 {[%clk 0:00:03.2]} 44. g5 {[%clk 0:01:02]}
44... f2 {[%clk 0:00:01.9]} 45. Rf1 {[%clk 0:01:01.2]} 45... Kd5 {[%clk
0:00:02.7]} 46. h6 {[%clk 0:01:01.7]} 46... Ke4 {[%clk 0:00:02.6]} 47. h7 {[%clk
0:01:02.1]} 47... Kf3 {[%clk 0:00:03.1]} 48. h8=Q {[%clk 0:01:01.8]} 1-0

[Event "*** Titled Tuesday Blitz"]
[Site "Chess.com"]
[Date "2021.02.16"]
[Round "3"]
[White "ObligatePawnivore"]
[Black "harlem4brew"]
[Result "0-1"]
[WhiteElo "1738"]
[BlackElo "2305"]
[TimeControl "180+1"]
[EndTime "10:30:31 PST"]
[Termination "harlem4brew won on time"]

1. c4 {[%clk 0:03:00.9]} 1... e6 {[%clk 0:02:59.4]} 2. Nc3 {[%clk 0:03:00.8]}
2... Nf6 {[%clk 0:02:59.7]} 3. e4 {[%clk 0:02:59.2]} 3... d6 {[%clk 0:02:57.8]}
4. d4 {[%clk 0:02:58.3]} 4... Be7 {[%clk 0:02:54]} 5. Nf3 {[%clk 0:02:56.6]}
5... Nbd7 {[%clk 0:02:53.4]} 6. Be2 {[%clk 0:02:52.1]} 6... e5 {[%clk
0:02:51.8]} 7. O-O {[%clk 0:02:49.6]} 7... exd4 {[%clk 0:02:51.1]} 8. Nxd4
{[%clk 0:02:40.6]} 8... Nc5 {[%clk 0:02:50.2]} 9. f3 {[%clk 0:02:38.8]} 9... O-O
{[%clk 0:02:49.5]} 10. b4 {[%clk 0:02:34.1]} 10... Ne6 {[%clk 0:02:48]} 11. Nf5
{[%clk 0:02:34]} 11... Re8 {[%clk 0:02:46.9]} 12. a3 {[%clk 0:02:25.8]} 12...
Bf8 {[%clk 0:02:46.6]} 13. Be3 {[%clk 0:02:18.3]} 13... c6 {[%clk 0:02:46.1]}
14. Qb3 {[%clk 0:02:03.3]} 14... g6 {[%clk 0:02:44.6]} 15. Nh6+ {[%clk
0:01:55.5]} 15... Bxh6 {[%clk 0:02:43.7]} 16. Bxh6 {[%clk 0:01:56.4]} 16... Nh5
{[%clk 0:02:41.7]} 17. g3 {[%clk 0:01:38.5]} 17... Qf6 {[%clk 0:02:31]} 18. Be3
{[%clk 0:01:25.2]} 18... Nhg7 {[%clk 0:02:23.3]} 19. Rad1 {[%clk 0:01:23.4]}
19... Qe7 {[%clk 0:02:18]} 20. Rfe1 {[%clk 0:01:14.7]} 20... f5 {[%clk
0:02:14.5]} 21. Bf2 {[%clk 0:00:53.3]} 21... f4 {[%clk 0:02:12.7]} 22. Kg2
{[%clk 0:00:33.4]} 22... Nh5 {[%clk 0:01:56.9]} 23. g4 {[%clk 0:00:31.6]} 23...
Nf6 {[%clk 0:01:53.1]} 24. h4 {[%clk 0:00:31.2]} 24... Nd7 {[%clk 0:01:51.3]}
25. Rh1 {[%clk 0:00:29.9]} 25... Ne5 {[%clk 0:01:45.3]} 26. h5 {[%clk
0:00:29.2]} 26... g5 {[%clk 0:01:45.1]} 27. h6 {[%clk 0:00:29]} 27... Bd7 {[%clk
0:01:34.8]} 28. Qb2 {[%clk 0:00:28.6]} 28... Rad8 {[%clk 0:01:33]} 29. c5 {[%clk
0:00:23.6]} 29... dxc5 {[%clk 0:01:32]} 30. Na4 {[%clk 0:00:21.6]} 30... cxb4
{[%clk 0:01:28.4]} 31. Qxe5 {[%clk 0:00:19.9]} 31... bxa3 {[%clk 0:01:23.1]} 32.
Nc5 {[%clk 0:00:15.3]} 32... Nxc5 {[%clk 0:01:20.4]} 33. Qxc5 {[%clk 0:00:15.6]}
33... b6 {[%clk 0:01:11.5]} 34. Bc4+ {[%clk 0:00:14.6]} 34... Kf8 {[%clk
0:01:09.5]} 35. Qxe7+ {[%clk 0:00:13.2]} 35... Kxe7 {[%clk 0:01:06.4]} 36. Bd4
{[%clk 0:00:14.1]} 36... Be6 {[%clk 0:01:03.1]} 37. Bxe6 {[%clk 0:00:12.5]}
37... Kxe6 {[%clk 0:01:02.8]} 38. Bg7 {[%clk 0:00:09.6]} 38... b5 {[%clk
0:00:56.9]} 39. Ra1 {[%clk 0:00:06]} 39... b4 {[%clk 0:00:55.6]} 40. Rhb1 {[%clk
0:00:04.9]} 40... c5 {[%clk 0:00:55]} 0-1

[Event "*** Titled Tuesday Blitz"]
[Site "Chess.com"]
[Date "2021.02.16"]
[Round "3"]
[White "Kapitan_Bayan"]
[Black "seorobert1971"]
[Result "0-1"]
[WhiteElo "2462"]
[BlackElo "2716"]
[TimeControl "180+1"]
[EndTime "10:30:32 PST"]
[Termination "seorobert1971 won by resignation"]

1. d4 {[%clk 0:03:00.9]} 1... e6 {[%clk 0:03:00.2]} 2. Nf3 {[%clk 0:03:01.2]}
2... Nf6 {[%clk 0:03:00]} 3. Bg5 {[%clk 0:03:00.7]} 3... b6 {[%clk 0:02:59.2]}
4. Nbd2 {[%clk 0:03:00.9]} 4... Bb7 {[%clk 0:02:59]} 5. e4 {[%clk 0:03:01.2]}
5... h6 {[%clk 0:02:58.5]} 6. Bxf6 {[%clk 0:03:00.5]} 6... Qxf6 {[%clk
0:02:58.6]} 7. e5 {[%clk 0:03:00.8]} 7... Qe7 {[%clk 0:02:58.5]} 8. Bd3 {[%clk
0:02:59.2]} 8... d6 {[%clk 0:02:58.4]} 9. O-O {[%clk 0:02:57.1]} 9... Nd7 {[%clk
0:02:58.1]} 10. exd6 {[%clk 0:02:53.1]} 10... cxd6 {[%clk 0:02:52.9]} 11. Re1
{[%clk 0:02:53.3]} 11... Nf6 {[%clk 0:02:51.3]} 12. Bb5+ {[%clk 0:02:52.4]}
12... Nd7 {[%clk 0:02:48.4]} 13. c4 {[%clk 0:02:33.8]} 13... a6 {[%clk
0:02:46.6]} 14. Bxd7+ {[%clk 0:02:34]} 14... Qxd7 {[%clk 0:02:46.2]} 15. d5
{[%clk 0:02:34.5]} 15... e5 {[%clk 0:02:43.4]} 16. b4 {[%clk 0:01:56.4]} 16...
Be7 {[%clk 0:02:40.6]} 17. c5 {[%clk 0:01:18.3]} 17... Bxd5 {[%clk 0:02:24.5]}
18. cxd6 {[%clk 0:01:15.3]} 18... Qxd6 {[%clk 0:02:23.6]} 19. Nxe5 {[%clk
0:01:06.7]} 19... O-O {[%clk 0:02:21.7]} 20. Ndc4 {[%clk 0:00:47.9]} 20... Bxc4
{[%clk 0:02:15.3]} 21. Qxd6 {[%clk 0:00:46.9]} 21... Bxd6 {[%clk 0:02:15.1]} 22.
Nxc4 {[%clk 0:00:47.5]} 22... Bxb4 {[%clk 0:02:15]} 23. Nxb6 {[%clk 0:00:40.3]}
23... Rab8 {[%clk 0:02:02.6]} 24. Nd7 {[%clk 0:00:37.6]} 24... Bxe1 {[%clk
0:02:00.9]} 25. Nxb8 {[%clk 0:00:33.6]} 25... Bxf2+ {[%clk 0:01:57.6]} 26. Kxf2
{[%clk 0:00:34.5]} 26... Rxb8 {[%clk 0:01:57.9]} 27. a4 {[%clk 0:00:35]} 27...
Rb4 {[%clk 0:01:55.3]} 28. a5 {[%clk 0:00:34.9]} 28... Rb5 {[%clk 0:01:55]} 29.
Ra4 {[%clk 0:00:33.7]} 29... g6 {[%clk 0:01:52.4]} 30. h4 {[%clk 0:00:33.4]}
30... h5 {[%clk 0:01:51.9]} 31. Kf3 {[%clk 0:00:32.4]} 31... Kg7 {[%clk
0:01:51.9]} 32. g3 {[%clk 0:00:32.7]} 32... Kf6 {[%clk 0:01:50.6]} 33. Ra3
{[%clk 0:00:33.2]} 33... Kf5 {[%clk 0:01:48.7]} 34. Ra4 {[%clk 0:00:33.6]} 34...
Rb3+ {[%clk 0:01:43.5]} 35. Kg2 {[%clk 0:00:33.9]} 35... Rb5 {[%clk 0:01:39.8]}
36. Kf3 {[%clk 0:00:34.1]} 36... f6 {[%clk 0:01:38.4]} 37. Ra3 {[%clk
0:00:31.8]} 37... g5 {[%clk 0:01:36.6]} 38. hxg5 {[%clk 0:00:27.3]} 38... fxg5
{[%clk 0:01:37.5]} 39. Ra4 {[%clk 0:00:25.3]} 39... g4+ {[%clk 0:01:35.1]} 40.
Kg2 {[%clk 0:00:25.4]} 40... Re5 {[%clk 0:01:31.9]} 41. Kf2 {[%clk 0:00:19.9]}
41... Re4 {[%clk 0:01:29.3]} 42. Rxe4 {[%clk 0:00:08.4]} 42... Kxe4 {[%clk
0:01:28.7]} 43. Ke2 {[%clk 0:00:09.1]} 43... Kd4 {[%clk 0:01:28.2]} 44. Kd2
{[%clk 0:00:09.6]} 44... Kc5 {[%clk 0:01:16.8]} 45. Ke3 {[%clk 0:00:09.7]} 45...
Kb5 {[%clk 0:01:17.2]} 46. Kf4 {[%clk 0:00:09.8]} 46... Kxa5 {[%clk 0:01:17.6]}
47. Kg5 {[%clk 0:00:10.4]} 47... Kb6 {[%clk 0:01:15.5]} 48. Kxh5 {[%clk
0:00:10.3]} 48... a5 {[%clk 0:01:16.4]} 49. Kxg4 {[%clk 0:00:09.5]} 49... a4
{[%clk 0:01:17.3]} 50. Kf5 {[%clk 0:00:09.6]} 50... a3 {[%clk 0:01:17.2]} 51. g4
{[%clk 0:00:10.5]} 51... a2 {[%clk 0:01:17.4]} 52. g5 {[%clk 0:00:11.4]} 52...
a1=Q {[%clk 0:01:17.1]} 0-1